{"text_format":"1","workbook":"xlsx","n_sheets":1,"sheets":["2024"],"not_rendered":{"charts":0,"images":0,"macros":1,"external_links":0,"defined_names":1,"comments":1,"pivot_tables":0},"unopened":[],"bounds":{"document_bytes":16777216,"sheet_cells":100000,"rows_first":2000,"rows_last":500,"rows_between":2000,"halvings":0,"cell_chars":16384,"cell_head_chars":4096},"cells_cut":0,"cells_raw":0,"read":"whole","date_system":"1900"}

{"sheet":"2024","index":0,"n_rows":62,"n_cols":27,"rows_kept":62,"cut":false,"hidden":false,"merged":[[60,6,60,12],[61,6,61,12],[7,4,7,5],[3,6,3,7],[13,4,13,5],[5,7,5,10],[9,4,9,6],[10,4,10,6],[3,9,3,10],[10,8,10,9],[6,7,6,9]]}
[]
[]
[null,null,null,null,null,null,2,null,null,null,null,null,null,null,null,{"$f":"L4-E7","v":2024}]
[null,null,null,"Anmeldung","25m","2542 Pieterlen","Bitte Jahrgang eintragen",null,null,"Schooting Masters",null,2024,null,null,{"$f":"RIGHT(E8,LEN(E8)-SEARCH(\"@\",E8,1))","v":{"$error":"#VALUE!"}}]
[null,null,null,"Die unten angegebene Zeit ist die Startzeit zum ersten Wettkampfschuss."]
[null,null,null,"Name / Vorname","JG","Kategorie",null,"Kader (Bitte auswählen)",null,null,null,"Lizenz"]
[null,null,null,null,null,{"$f":"IF(P3>21,\"ELITE\",\"JUNIOR/IN\")","v":"ELITE"},null,"kein SSV Kader"]
[null,null,null,"E-Mail Adresse   "]
[]
[null,null,null,"Adresse   ",null,null,null,null,"Telefon"]
[null,null,null,"PLZ / Ort   "]
[]
[]
[null,null,null,null,null,null,"25m Sport- und\nZentralfeuerpistole\nPräzision","25m Sport- und Zentralfeuerpistole Schnellfeuer","25m Sport- und\nZentralfeuerpistole\nPräzision","25m Sport- und Zentralfeuerpistole Schnellfeuer","25m Standard\nPistole\n",null,null,null,null,null,null,null,null,null,"10m(40)","10(60)","50(60)","50(60/40/40)","50(20/20/20)"]
[]
[null,null,null,"Shooting Masters","09+10","13. / 14. April 2024","Samstag",null,"Sonntag",null,null,null,null,null,false,false,false,false,false,false,null,null,{"$f":"COUNTIF(Q16:Q18,TRUE)","v":0},{"$f":"COUNTIF(R16:R18,TRUE)","v":0},{"$f":"COUNTIF(S16:S18,TRUE)","v":0},null,"kein SSV Kader"]
[null,null,null,null,null,null,null,"10:45 Uhr",null,"10:45 Uhr","Samstag",{"$f":"IF(S16=FALSE,\"\",\"Sa.08:30-09:45\")","v":""},null,null,false,false,false,false,false,false,{"$f":"COUNTIF(O16:O19,TRUE)","v":0},{"$f":"COUNTIF(P16:P19,TRUE)","v":0},null,null,null,null,"Kader SpS (M, E1/E2, T4) "]
[null,null,null,null,null,"2542 Pieterlen (25m)",null,null,null,null,null,null,null,null,false,false,null,null,null,false,null,null,null,null,null,null,"NWF (T4-J, T3/T2/T1)"]
[null,null,null,null,null,null,null,null,null,null,"Sonntag",{"$f":"IF(S17=FALSE,\"\",\"Sa.10:30-11:45\")","v":""},null,null,false,false,null,null,null,false]
[]
[]
[null,null,null,"Shooting Masters",6,"04. / 05. Mai 2019",null,null,null,null,null,null,null,null,false,false,null,false,false,false,null,null,{"$f":"COUNTIF(Q22:Q24,TRUE)","v":0},{"$f":"COUNTIF(R22:R24,TRUE)","v":0},{"$f":"COUNTIF(S22:S24,TRUE)","v":0}]
[null,null,null,null,null,null,null,"Samstag",null,null,null,"Sonntag",null,null,false,false,false,false,false,false,{"$f":"COUNTIF(O22:O25,TRUE)","v":0},{"$f":"COUNTIF(P22:P25,TRUE)","v":0}]
[null,null,null,null,null,"Wil / SG (10/50m)",{"$f":"IF(O22=FALSE,\"\",\"So. 08:00 / 10:50\")","v":""},null,null,null,null,null,null,null,false,false,null,null,null,false]
[null,null,null,null,null,null,null,"Sonntag",null,null,null,{"$f":"IF(S23=FALSE,\"\",\"Sa. 10:30-11:45\")","v":""},null,null,false,false,null,null,null,false]
[null,null,null,null,null,null,{"$f":"IF(O23=FALSE,\"\",\"So. 09:20 / 11:40\")","v":""}]
[]
[null,null,null,"Shooting Masters","11+12","27. / 28. April 2024","Samstag",null,"Sonntag",null,null,null,null,null,false,false,false,false,false,false,null,null,{"$f":"COUNTIF(Q28:Q30,TRUE)","v":0},{"$f":"COUNTIF(R28:R30,TRUE)","v":0},{"$f":"COUNTIF(S28:S30,TRUE)","v":0}]
[null,null,null,null,null,null,null,"10:45 Uhr",null,"10:45 Uhr","Samstag",{"$f":"IF(S28=FALSE,\"\",\"Sa.So. 08:30-09:45\")","v":""},null,null,false,false,false,false,false,false,{"$f":"COUNTIF(O28:O32,TRUE)","v":0},{"$f":"COUNTIF(P28:P32,TRUE)","v":0}]
[null,null,null,null,null,"2542 Pieterlen (25m)",null,null,null,null,null,null,null,null,false,null,null,null,null,false]
[null,null,null,null,null,null,null,null,null,null,"Sonntag",null,null,null,false,null,null,null,null,false]
[null,null,null,null,null,null,null,null,null,null,null,null,null,null,false]
[]
[null,null,null,"Shooting Masters",8,"10. / 11. August 2019",null,null,null,null,null,null,null,null,false,false,false,false,false,false,null,null,{"$f":"COUNTIF(Q34:Q36,TRUE)","v":0},{"$f":"COUNTIF(R34:R36,TRUE)","v":0},{"$f":"COUNTIF(S34:S36,TRUE)","v":0}]
[null,null,null,null,null,null,null,"Samstag",null,{"$f":"IF(Q34=FALSE,\"\",\"Sa. 17:00-18:15\")","v":""},{"$f":"IF(R34=FALSE,\"\",\"Sa. 17:00-18:15\")","v":""},"Sonntag",null,null,false,false,false,false,false,false,{"$f":"COUNTIF(O34:O37,TRUE)","v":0},{"$f":"COUNTIF(P34:P37,TRUE)","v":0}]
[null,null,null,null,null,"Wil / SG (10/50m)",{"$f":"IF(O34=FALSE,\"\",\"So. 08:00 / 10:50\")","v":""},null,null,null,null,null,null,null,false,false,null,null,null,false]
[null,null,null,null,null,null,null,"Sonntag",null,null,null,{"$f":"IF(S35=FALSE,\"\",\"Sa. 10:30-11:45\")","v":""},null,null,false,false,null,null,null,false]
[null,null,null,null,null,null,{"$f":"IF(O36=FALSE,\"\",\"So. 09:20 / 11:40\")","v":""}]
[]
[null,null,null,"Shooting Masters","13+14","15. / 16. Juni 2024","Samstag",null,"Sonntag",null,null,null,null,null,false,false,false,false,false,false,null,null,{"$f":"COUNTIF(Q40:Q42,TRUE)","v":0},{"$f":"COUNTIF(R40:R42,TRUE)","v":0},{"$f":"COUNTIF(S40:S42,TRUE)","v":0}]
[null,null,null,null,null,null,null,"11:40 Uhr",null,"10:45 Uhr","Samstag",{"$f":"IF(S40=FALSE,\"\",\"Sa. 08:30-09:45\")","v":""},null,null,true,false,false,false,false,false,{"$f":"COUNTIF(O41:O43,TRUE)","v":1},{"$f":"COUNTIF(P40:P43,TRUE)","v":0}]
[null,null,null,null,null,"2542 Pieterlen (25m)",null,null,null,null,null,null,null,null,false,false,null,false,false,false]
[null,null,{"$f":"IF(U41=2,\"10m Shooting Masters zählt der Sonntag\",IF(V41=2,\"10m Shooting Masters zählt der Sonntag\",\"\"))","v":""},null,null,null,null,null,null,null,"Sonntag",{"$f":"IF(S41=FALSE,\"\",\"Sa. 10:30-11:45\")","v":""},null,null,false,false,null,null,null,false]
[]
[]
[null,null,null,"Shooting Masters",6,"22. / 23. August 2009",null,null,null,null,null,null,null,null,false,false,false,false,false]
[null,null,null,null,null,{"$f":"IF(P47=FALSE,\"\",\"Samstag   09:00 - 10:45\")","v":""},null,null,null,{"$f":"IF(Q46=FALSE,\"\",\"Sa. 15:30-16:45\")","v":""},{"$f":"IF(R46=FALSE,\"\",\"So. 11:10-15:00\")","v":""},{"$f":"IF(S46=FALSE,\"\",\"So. 08:30-10:45\")","v":""},null,null,false,false,null,false]
[null,null,null,null,null,{"$f":"IF(O47=FALSE,\"\",\"Samstag   11:15 - 12:30\")","v":""},null,null,null,null,null,null,null,null,false,false]
[null,null,null,null,null,{"$f":"IF(AND(P48=FALSE,O48=FALSE),\"\",\"Samstag   13:00 - 14:15/14:45\")","v":""},null,null,null,null,{"$f":"IF(R47=FALSE,\"\",\"Junioren\")","v":""},null,null,null,false,false]
[null,null,null,null,null,{"$f":"IF(AND(P49=FALSE,O49=FALSE),\"\",\"Samstag   15:15 - 16:30/17:00\")","v":""},null,null,null,null,{"$f":"IF(R47=FALSE,\"\",\"Sa. 14:00-17:50\")","v":""}]
[]
[null,null,null,"Shooting Masters","15+16","13. / 14. Juli 2024","Samstag",null,"Sonntag",null,null,null,null,null,false,false,false,false,false,false,null,null,{"$f":"COUNTIF(Q52:Q54,TRUE)","v":0},{"$f":"COUNTIF(R52:R54,TRUE)","v":0},{"$f":"COUNTIF(S52:S54,TRUE)","v":0}]
[null,null,null,null,null,null,null,"11:40 Uhr",null,"10:45 Uhr","Samstag",{"$f":"IF(S52=FALSE,\"\",\"Sa. 08:30-09:45\")","v":""},null,null,true,false,false,false,false,false,{"$f":"COUNTIF(O53:O55,TRUE)","v":1},{"$f":"COUNTIF(P52:P55,TRUE)","v":0}]
[null,null,null,null,null,"2542 Pieterlen (25m)",null,null,null,null,null,null,null,null,false,false,null,false,false,false]
[null,null,{"$f":"IF(U53=2,\"10m Shooting Masters zählt der Sonntag\",IF(V53=2,\"10m Shooting Masters zählt der Sonntag\",\"\"))","v":""},null,null,null,null,null,null,null,"Sonntag",{"$f":"IF(S53=FALSE,\"\",\"Sa. 10:30-11:45\")","v":""},null,null,false,false,null,null,null,false]
[]
[]
[]
[null,null,null,"Meldetermin","Montag 20:00 Uhr vor dem Shooting Masters"]
[]
[null,null,null,null,null,"Bemerkungen / Wünsche"]
[null,null,null,"ssv@armando-amrein.ch"]